bitfinex/quotes_ETHUSD_20241204
["timestamp","ask_amount","ask_price","bid_price","bid_amount"]
[1733348860958,0.2,3845.9,3844.7,17.72016835]
[1733348861174,0.2,3845.5,3844.7,17.72016835]
[1733348861378,0.2,3846.0,3844.7,17.72016835]
[1733348861545,0.80136027,3846.1,3844.7,17.72016835]
[1733348861546,0.90136027,3846.1,3844.7,17.72016835]
[1733348861747,0.14053184,3846.0,3844.7,17.72016835]
[1733348861978,0.1,3845.7,3844.7,17.72016835]
[1733348863342,0.14053184,3846.0,3844.7,17.72016835]
[1733348863480,0.3,3845.7,3844.7,17.72016835]
[1733348864547,0.14053184,3846.0,3844.7,17.72016835]
[1733348864548,0.1,3845.1,3844.7,17.72016835]
[1733348864786,0.2,3845.3,3844.7,17.72016835]
[1733348864984,0.2,3844.9,3844.7,17.72016835]
[1733348865996,0.14053184,3846.0,3844.7,17.72016835]
[1733348865997,0.2,3845.5,3844.7,17.72016835]
[1733348866165,0.2,3845.7,3844.7,17.72016835]
[1733348866367,0.1,3845.2,3844.7,17.72016835]
[1733348866571,0.2,3845.0,3844.7,17.72016835]
[1733348866904,0.2,3845.0,3844.7,15.79552792]
[1733348867393,0.3,3844.8,3844.7,15.36643587]
[1733348867602,6.019,3844.8,3844.7,7.44910229]
[1733348867896,6.019,3844.8,3844.7,1.48602251]
[1733348868185,3.019,3844.4,3844.3,1.85700101]
[1733348868395,0.2,3843.7,3843.2,10.01010101]
[1733348868697,0.2,3843.7,3843.2,6.01020101]
[1733348868901,0.2,3843.7,3843.2,2.01030101]
[1733348869567,0.2,3844.3,3843.2,2.01030101]
[1733348869894,0.2,3844.5,3843.2,2.01030101]
[1733348870263,0.1,3845.2,3843.2,2.21133111]
[1733348870916,0.2,3844.8,3843.2,2.01030101]
[1733348871073,0.1,3844.9,3843.2,2.01030101]
[1733348871276,0.2,3844.6,3843.2,2.01030101]
[1733348871513,0.1,3844.5,3843.2,2.01030101]
[1733348871670,0.1,3844.9,3843.2,2.01030101]
[1733348871873,0.2,3844.8,3843.2,2.01030101]
[1733348872109,0.2,3845.0,3843.2,2.01030101]
[1733348872421,0.23435128,3845.2,3843.2,2.21133111]
[1733348872711,3.42668533,3845.3,3843.2,2.21133111]
[1733348872712,3.019,3845.3,3843.2,2.21133111]
[1733348872918,0.2,3844.7,3843.2,2.01030101]
[1733348873083,0.2,3844.0,3843.2,2.01030101]
[1733348873489,2.9533802,3844.7,3843.2,2.01030101]
[1733348873490,0.2,3844.5,3843.2,2.01030101]
[1733348873678,0.2343802,3844.6,3843.2,2.01030101]
[1733348873679,0.1,3844.6,3843.2,2.01030101]
[1733348873879,0.2,3844.5,3843.2,2.01030101]
[1733348874713,0.1,3844.6,3843.2,2.01030101]
[1733348874714,0.33478377,3844.6,3843.2,2.01030101]
[1733348875025,0.2,3844.8,3843.2,2.01030101]
[1733348875026,0.3,3845.0,3843.2,2.01030101]
[1733348875229,0.1,3845.0,3843.2,2.01030101]
[1733348875533,0.1,3845.0,3843.2,2.33804628]
[1733348876313,0.23553069,3844.9,3843.2,2.33804628]
[1733348876548,0.23553069,3844.8,3843.2,2.01030101]
[1733348876723,0.23553069,3844.7,3843.2,2.01030101]
[1733348877051,0.23553069,3844.6,3843.2,2.01030101]
[1733348877257,0.23553069,3844.5,3843.2,2.01030101]
[1733348877417,0.23553069,3844.4,3843.2,2.01030101]
[1733348877612,0.23553069,3844.3,3843.2,2.01030101]
[1733348877920,0.61190489,3844.8,3843.2,2.01030101]
[1733348878121,0.47130514,3844.7,3843.2,2.01030101]
[1733348878374,0.47130514,3844.6,3843.2,2.01030101]
[1733348878535,0.47130514,3844.5,3843.2,2.01030101]
[1733348878765,0.23624935,3844.4,3843.2,2.01030101]
[1733348879057,0.3,3845.0,3843.2,2.01030101]
[1733348879058,0.23624935,3844.3,3843.2,2.01030101]
[1733348879230,0.3,3845.0,3843.2,2.01030101]
[1733348879231,0.2363426,3844.2,3843.2,2.01030101]
[1733348879430,0.2363426,3844.1,3843.2,2.01030101]
[1733348879610,0.37814816,3844.5,3843.2,2.01030101]
[1733348879811,0.23647513,3844.4,3843.2,2.01030101]
[1733348880150,0.23647513,3844.3,3843.2,2.01030101]
[1733348880466,0.23647513,3844.2,3843.2,2.01030101]
[1733348880773,0.23647513,3844.1,3843.2,2.01030101]
[1733348880945,0.3,3844.3,3843.2,2.01030101]
[1733348881150,0.85110547,3844.2,3843.2,2.01030101]
[1733348881361,0.2,3844.0,3843.2,2.01030101]
[1733348881661,0.47295731,3843.9,3843.2,2.01030101]
[1733348881829,0.3,3843.5,3843.2,1.41280235]
[1733348882036,0.3,3843.3,3841.0,3.64843625]
[1733348882216,0.47295731,3843.2,3841.0,3.64843625]
[1733348882560,0.85110547,3843.1,3841.0,3.64843625]
[1733348882854,0.23661471,3843.0,3841.0,3.64843625]
[1733348883171,0.23661471,3842.9,3841.0,3.64843625]
[1733348883315,0.2,3843.7,3841.0,3.64843625]
[1733348883316,0.23666564,3842.8,3841.0,3.64843625]
[1733348883660,0.23666335,3842.7,3841.0,3.64843625]
[1733348883967,0.1,3843.2,3841.0,3.64843625]
[1733348883968,0.23666335,3842.6,3841.0,3.64843625]
[1733348884256,0.23666335,3842.5,3841.0,3.64843625]
[1733348884618,0.23666335,3842.4,3841.0,3.64843625]
[1733348884816,0.23666335,3842.3,3841.0,3.64843625]
[1733348885051,0.23666335,3842.2,3841.4,3.0]
[1733348885216,0.23664859,3842.1,3841.4,3.0]
[1733348885614,0.1,3841.9,3841.0,2.06473625]
[1733348885904,0.2,3842.4,3841.0,2.06473625]
[1733348885905,0.47299119,3841.8,3841.0,2.06473625]
[1733348886017,0.37814816,3842.3,3841.0,2.06473625]
[1733348886018,0.23664859,3841.7,3841.0,2.06473625]
[1733348886217,0.23664859,3842.1,3841.0,2.06473625]
[1733348886444,0.23664859,3842.0,3841.0,2.06473625]
[1733348886646,0.23664859,3841.9,3841.0,2.06473625]
[1733348886815,0.23664859,3841.8,3841.0,2.06473625]
[1733348887184,0.2,3842.6,3841.0,2.06473625]
[1733348887185,0.23664859,3841.7,3841.0,2.06473625]
[1733348887383,0.23664859,3841.6,3841.0,2.06473625]
[1733348887548,0.2363426,3842.1,3841.0,2.06473625]
[1733348887549,0.1,3842.1,3841.0,2.06473625]
[1733348887749,0.23629014,3841.5,3841.0,0.9812769]
[1733348888138,0.1,3842.1,3841.0,0.9812769]
[1733348888139,0.23629014,3841.9,3841.0,0.9812769]
[1733348888373,0.23629014,3841.8,3841.0,0.9812769]
[1733348888574,0.23629014,3841.7,3841.0,0.9812769]
[1733348888884,0.23629014,3842.0,3841.0,3.58401469]
[1733348889084,0.47258028,3842.6,3841.0,3.58401469]
[1733348889248,0.23629014,3842.5,3841.0,3.58401469]
[1733348889585,0.23629014,3842.4,3841.0,3.58401469]
[1733348889795,0.23629014,3842.8,3841.0,3.58401469]
[1733348889992,0.23629014,3842.7,3841.1,4.35941157]
[1733348890150,0.23629014,3842.6,3841.0,5.4848769]
[1733348890354,0.23629014,3842.5,3841.0,5.4848769]
[1733348890693,7.9,3841.7,3841.0,5.4848769]
[1733348891387,7.9,3841.7,3841.0,7.03437469]
[1733348893152,7.9,3841.7,3841.0,5.4848769]
[1733348894996,7.9,3841.7,3841.0,2.4848769]
[1733348895164,7.9,3841.7,3841.0,0.9812769]
[1733348897196,0.2363609,3841.6,3841.0,0.9812769]
[1733348897399,0.23633948,3841.6,3841.0,0.9812769]
[1733348897969,0.23633948,3841.5,3841.0,0.9812769]
[1733348898211,7.9,3841.7,3841.0,3.9812769]
[1733348899207,7.9,3841.7,3841.0,5.54243469]
[1733348899371,7.9,3841.7,3841.1,3.0]
[1733348899573,7.9,3841.7,3841.3,1.589]
[1733348901415,7.9,3841.7,3841.0,0.9812769]
[1733348903878,7.9,3841.7,3841.0,3.9812769]
[1733348904211,7.84966922,3841.7,3841.0,3.9812769]
[1733348909395,6.84966922,3841.7,3841.0,3.9812769]
[1733348910342,6.71933861,3841.7,3841.0,3.9812769]
[1733348910623,6.71933861,3841.7,3841.1,4.6351]
[1733348912208,6.71933861,3841.7,3841.0,3.9812769]
[1733348912632,6.66032635,3841.7,3841.0,3.9812769]
[1733348913381,6.66032635,3841.7,3841.1,1.5979]
[1733348913607,6.66032635,3841.7,3841.1,4.5979]
[1733348913809,6.66032635,3841.7,3841.2,4.55892779]
[1733348914393,6.66032635,3841.7,3841.1,4.5979]
[1733348916388,6.66032635,3841.7,3841.0,3.9812769]
[1733348918731,6.66032635,3841.7,3841.0,0.9812769]
[1733348918931,9.37932635,3841.7,3841.0,0.9812769]
[1733348919232,3.19591597,3841.6,3841.0,0.9812769]
[1733348919435,0.1,3841.2,3841.0,0.12074306]
[1733348919588,0.1,3841.2,3840.9,10.01010101]
[1733348919589,2.719,3841.0,3840.9,8.46465779]
[1733348919801,5.63725951,3841.0,3840.9,8.46465779]
[1733348920063,6.20251434,3841.0,3840.9,8.46465779]
[1733348920208,6.20251434,3841.0,3840.9,4.70673512]
[1733348920209,6.30220054,3841.0,3840.9,4.70673512]
[1733348920514,7.89582033,3841.0,3840.9,0.73438313]
[1733348920715,8.29167811,3841.0,3840.9,0.73438313]
[1733348921119,0.1,3840.6,3839.8,10.01010101]
[1733348921346,0.1,3840.0,3839.8,3.61095801]
[1733348921664,0.23845798,3839.9,3839.8,3.61095801]
[1733348921812,0.23845798,3840.0,3839.8,3.61095801]
[1733348922007,0.47691597,3840.2,3839.8,3.61095801]
[1733348922214,1.08487993,3840.4,3839.8,3.61095801]
[1733348922215,0.23845798,3840.3,3839.8,3.61095801]
[1733348922409,2.22012902,3840.3,3839.8,3.61095801]
[1733348922611,0.23845798,3840.2,3839.8,3.61095801]
[1733348922806,0.39585778,3840.7,3839.8,3.61095801]
[1733348922807,1.08487993,3840.3,3839.8,3.61095801]
[1733348923006,1.08487993,3840.5,3839.8,3.61095801]
[1733348923246,1.98114793,3840.4,3839.8,3.61095801]
[1733348923420,0.896268,3840.3,3839.8,3.61095801]
[1733348923619,1.08487993,3840.6,3839.8,3.61095801]
[1733348923844,1.08487993,3840.9,3839.8,3.61095801]
[1733348924047,0.47465582,3840.7,3839.8,3.61095801]
[1733348924249,0.23732791,3840.7,3839.8,5.19805801]
[1733348924546,0.23732791,3841.5,3839.9,3.3610958]
[1733348924925,1.48996232,3842.2,3839.9,3.3610958]
[1733348925109,1.08487993,3841.9,3839.9,3.0]
[1733348925311,2.71633004,3841.6,3839.9,3.0]
[1733348925511,1.9815523,3841.5,3839.9,3.0]
[1733348925711,1.9815523,3841.5,3839.8,3.61095801]
[1733348925712,1.08487993,3841.3,3839.8,3.61095801]
[1733348925963,1.08487993,3841.1,3839.8,3.61095801]
[1733348926147,1.32220449,3841.2,3839.8,3.61095801]
[1733348926350,0.89666241,3841.1,3839.8,3.61095801]
[1733348926520,1.08487993,3840.7,3839.8,3.61095801]
[1733348926721,1.08487993,3840.5,3839.8,3.61095801]
[1733348927085,1.98154234,3840.4,3839.8,3.61095801]
[1733348927284,1.08487993,3840.7,3839.8,3.61095801]
[1733348927482,2.42973962,3840.8,3839.8,3.61095801]
[1733348927776,1.98144389,3840.7,3839.8,3.61095801]
[1733348927985,0.89656396,3840.6,3839.8,3.61095801]
[1733348928181,1.08487993,3840.8,3839.8,3.61095801]
[1733348928487,2.97217958,3841.0,3839.8,3.61095801]
[1733348928488,2.66648371,3840.9,3839.8,3.61095801]
[1733348928782,3.32606135,3840.8,3839.8,3.61095801]
[1733348929079,1.3698038,3840.7,3839.8,3.61095801]
[1733348929286,0.23674409,3840.7,3839.8,3.61095801]
[1733348929433,1.558362,3840.8,3839.8,3.61095801]
[1733348929634,0.8962307,3840.7,3839.8,3.61095801]
[1733348929848,1.558362,3840.9,3839.8,3.61095801]
[1733348930045,1.08487993,3840.7,3839.8,3.61095801]
[1733348930244,1.08487993,3840.2,3839.8,2.52704371]
[1733348930468,1.98108243,3840.1,3839.8,2.52704371]
[1733348930672,0.8962025,3840.0,3839.8,2.52704371]
[1733348930876,2.90269065,3840.1,3839.8,2.52704371]
[1733348931134,0.47348207,3840.0,3839.8,2.52704371]
[1733348931330,1.08487993,3840.1,3839.8,2.52704371]
[1733348931632,2.45417491,3840.2,3839.8,2.52704371]
[1733348931784,1.08487993,3840.0,3839.8,2.52704371]
[1733348932110,2.60417,3840.0,3839.8,2.52704371]
[1733348932285,0.47348207,3839.9,3839.8,2.52704371]
[1733348932486,0.89537245,3839.9,3839.8,2.52704371]
[1733348932892,0.89538972,3839.9,3839.8,2.52704371]
[1733348933192,1.558362,3840.1,3839.8,2.52704371]
[1733348933500,0.89497472,3840.0,3839.8,2.52704371]
[1733348933714,0.89497472,3839.9,3839.8,2.52704371]
[1733348933911,1.558362,3840.1,3839.8,2.52704371]
[1733348934226,2.60423,3839.9,3839.8,2.52704371]
[1733348934434,5.05714095,3839.9,3839.8,2.01346138]
[1733348934731,2.6045,3839.5,3839.2,0.08029768]
[1733348934942,3.73578693,3839.5,3839.2,0.08029768]
[1733348935242,3.73578693,3839.5,3838.7,10.01010101]
[1733348935243,2.60498,3838.8,3838.7,9.58648923]
[1733348935524,0.47348207,3838.8,3838.7,9.58648923]
[1733348935896,0.2,3838.9,3838.7,9.58648923]
[1733348936126,2.60498,3838.8,3838.7,9.58648923]
[1733348936338,3.07846207,3838.8,3838.7,6.69439619]
[1733348936491,0.47348207,3838.8,3838.7,6.69439619]
[1733348936693,0.67348207,3838.9,3838.7,6.69439619]
[1733348937003,0.47348207,3838.9,3838.7,6.69439619]
[1733348937215,0.059862,3839.1,3838.7,6.69439619]
[1733348937421,0.53334407,3839.1,3838.7,6.69439619]
[1733348937594,0.059862,3839.1,3838.7,6.69439619]
[1733348937991,0.2,3838.9,3838.7,6.69439619]
[1733348938242,2.719,3838.8,3838.7,5.54041143]
[1733348938440,2.95573798,3838.8,3838.7,3.80989646]
[1733348938747,8.79746207,3838.8,3838.7,3.80989646]
[1733348938896,9.27474903,3838.8,3838.7,3.80989646]
[1733348939096,8.89746207,3838.8,3838.7,3.80989646]
[1733348939344,0.2,3838.2,3837.8,0.005]
[1733348939521,0.2,3838.2,3834.2,10.01010101]
[1733348939522,3.2,3838.2,3837.6,8.25033253]
[1733348939845,3.0,3838.3,3837.6,8.25033253]
[1733348940008,2.90507,3838.7,3837.6,8.25033253]
[1733348940206,0.43069498,3839.0,3837.6,8.25033253]
[1733348940207,0.47073824,3838.6,3837.6,8.25033253]
[1733348940418,0.57073824,3838.8,3837.6,8.25033253]
[1733348940620,0.47073824,3838.8,3837.6,8.25033253]
[1733348940827,0.84732884,3838.9,3837.6,8.25033253]
[1733348941033,3.45246529,3838.9,3837.6,8.25033253]
[1733348941212,0.23536912,3838.8,3837.6,8.25033253]
[1733348941433,0.23545237,3838.8,3837.6,8.25033253]
[1733348941629,3.14969498,3839.0,3837.6,8.25033253]
[1733348941953,3.18982149,3838.9,3837.6,8.25033253]
[1733348942150,0.23545237,3838.8,3837.6,8.25033253]
[1733348942307,2.719,3838.4,3837.6,8.25033253]
[1733348942503,2.719,3838.2,3837.6,8.25033253]
[1733348942698,0.63071269,3838.6,3837.6,8.25033253]
[1733348942699,0.23535799,3838.1,3837.6,8.25033253]
[1733348942900,1.65457475,3838.6,3837.6,8.25033253]
[1733348943097,0.43071269,3838.6,3837.6,8.25033253]
[1733348945857,0.27123621,3838.8,3837.6,8.25033253]
[1733348946033,0.059862,3839.1,3837.6,8.60166522]
[1733348946429,0.059862,3839.1,3837.7,3.0]
[1733348947455,0.059862,3839.1,3837.6,8.60166522]
[1733348947821,0.059862,3839.1,3837.6,8.25033253]
[1733348949246,0.23621886,3839.0,3837.6,8.25033253]
[1733348949553,0.23621886,3838.9,3836.0,0.3]
[1733348949714,0.23621886,3838.9,3836.0,0.2]
[1733348949715,0.47243612,3838.8,3836.0,0.2]
[1733348949932,0.47243612,3838.7,3836.0,0.2]
[1733348950175,0.47243612,3838.7,3836.5,1.0010101]
[1733348950176,0.23621886,3838.6,3836.5,1.0010101]
[1733348950359,0.47243612,3838.5,3836.5,1.0010101]
[1733348950566,0.23680469,3838.4,3836.5,1.0010101]
[1733348950875,0.23680469,3838.4,3835.4,0.2]
[1733348950876,0.23680469,3838.3,3835.4,0.2]
[1733348951188,0.23680469,3838.2,3835.4,0.2]
[1733348951389,0.47358948,3838.2,3835.4,0.2]
[1733348951541,0.23678479,3838.1,3835.4,0.2]
[1733348951849,0.61566035,3838.2,3835.4,0.2]
[1733348951850,0.47358948,3838.0,3835.4,0.2]
[1733348952047,0.23678479,3837.9,3836.4,11.01111111]
[1733348952247,0.23678479,3837.8,3836.4,11.01111111]
[1733348952473,0.23678479,3838.0,3836.4,11.01111111]
[1733348952683,0.23678479,3838.0,3836.7,0.2]
[1733348952684,6.66032635,3838.0,3836.7,0.2]
[1733348953285,6.66032635,3838.0,3837.3,0.2]
[1733348953462,2.1692122,3840.7,3837.7,0.2]
[1733348953463,0.39464131,3839.8,3837.7,0.2]
[1733348953661,0.39464131,3840.0,3837.7,0.2]
[1733348953866,0.23695372,3839.7,3837.7,0.2]
[1733348954064,0.23695372,3839.9,3837.7,0.2]
[1733348954244,0.23695377,3839.8,3837.7,0.2]
[1733348954591,0.23695377,3839.7,3838.1,0.2]
[1733348954797,0.47390749,3840.1,3838.1,0.2]
[1733348954941,0.23695377,3840.0,3838.3,0.2]
[1733348955276,0.23695377,3839.9,3838.3,0.2]
[1733348955483,0.23695377,3839.8,3838.3,0.2]
[1733348955793,0.23695377,3839.8,3836.6,0.02605571]
[1733348955794,0.47390749,3840.1,3838.7,3.0]
[1733348955943,1.74879827,3841.6,3838.6,0.2]
[1733348955944,0.23695377,3840.0,3838.9,3.0]
[1733348956139,0.23695377,3839.9,3838.8,0.32]
[1733348956453,0.23695377,3840.1,3839.0,3.0]
[1733348956644,0.47390749,3840.4,3839.0,6.152385]
[1733348956840,0.23695377,3840.3,3838.6,0.2]
[1733348957036,0.39464131,3840.9,3838.0,0.3]
[1733348957037,0.23695377,3840.2,3838.0,0.3]
[1733348957243,0.23695377,3840.2,3836.5,4.10111111]
[1733348957244,0.23695377,3840.1,3837.8,0.1]
[1733348957459,0.47390749,3840.0,3837.8,0.1]
[1733348957696,0.47390749,3839.9,3837.8,0.1]
[1733348957957,0.37912603,3840.2,3837.8,0.1]
[1733348957958,0.23695377,3839.8,3837.9,0.2]
[1733348958191,0.23695377,3839.7,3837.9,0.2]
[1733348958375,0.23695377,3839.6,3837.9,0.2]
[1733348958692,0.47390749,3840.1,3837.9,0.2]
[1733348958900,0.47390749,3840.0,3837.9,0.2]
[1733348959214,0.47390749,3839.9,3838.1,0.2]
[1733348959499,0.23695377,3839.8,3838.1,0.2]
[1733348959710,0.23695377,3839.7,3838.2,0.1]
[1733348960006,0.23695377,3840.0,3838.6,0.1]
[1733348960303,0.23682148,3840.4,3838.6,0.3]
[1733348960509,0.23682148,3840.9,3838.6,0.3]
[1733348960662,0.23682526,3840.2,3838.6,0.3]
[1733348961681,0.23682526,3840.2,3837.0,3.52437617]
[1733348961682,0.23682526,3840.2,3838.2,0.2]
[1733348961882,0.23682526,3840.2,3838.3,0.1]
[1733348961883,0.23683491,3840.1,3838.3,0.1]
[1733348963006,0.23682526,3840.2,3838.3,0.1]
[1733348963309,0.23682526,3840.2,3837.9,0.1]
[1733348963458,0.23682526,3840.2,3837.0,0.1]
[1733348963661,1.08138324,3840.1,3837.2,0.2]
[1733348964015,1.08138324,3839.9,3837.2,0.2]
[1733348964160,1.08138324,3839.9,3836.5,1.10111111]
[1733348964161,1.08138324,3839.8,3836.9,0.1]
[1733348964361,1.08138324,3839.5,3836.9,0.3617]
[1733348964573,0.2367736,3839.4,3836.9,0.3617]
[1733348964906,1.08138324,3839.5,3836.9,0.3617]
[1733348964907,0.2367736,3839.3,3836.9,0.3617]
[1733348965105,1.31815684,3839.4,3836.9,0.3617]
[1733348965414,2.66012561,3839.5,3837.1,0.2]
[1733348965704,0.2367736,3839.4,3837.1,0.3]
[1733348965891,1.58080266,3839.7,3837.1,0.3]
[1733348966105,0.2367736,3839.7,3837.1,0.3]
[1733348966296,0.2367736,3839.6,3837.1,0.3]
[1733348966618,1.31815684,3839.7,3837.1,0.3]
[1733348966767,0.2367736,3839.6,3837.1,0.3]
[1733348966968,1.08138324,3839.7,3837.3,0.2]
[1733348967177,0.23697591,3839.6,3837.3,0.2]
[1733348967387,2.66238821,3839.8,3837.5,0.2]
[1733348967614,0.23697591,3839.7,3837.7,0.1]
[1733348967814,0.23697591,3839.8,3837.7,0.1]
[1733348968020,0.23697591,3839.8,3837.8,1.5956]
[1733348968311,0.23697591,3839.8,3838.0,1.5956]
[1733348968469,2.42561291,3840.0,3838.0,1.5956]
[1733348968670,2.42561291,3840.0,3837.9,0.46956]
[1733348968671,0.23694906,3840.0,3838.3,3.2]
[1733348968896,1.34422967,3840.1,3838.5,0.2]
[1733348968897,0.23694906,3840.1,3838.5,0.2]
[1733348969100,0.23682526,3840.2,3838.6,1.6423]
[1733348969415,0.23682526,3840.2,3838.8,3.0]
[1733348969584,0.23682526,3840.2,3839.0,4.6423]
[1733348969790,0.23682526,3840.2,3839.1,1.6423]
[1733348970476,1.08138324,3840.8,3839.1,1.6423]
[1733348970674,0.89599905,3840.7,3839.1,1.6423]
[1733348970971,1.5807968,3841.0,3839.1,1.6423]
[1733348971179,1.5807968,3841.0,3839.3,1.5307]
[1733348971180,0.89633603,3840.9,3839.3,1.5307]
[1733348971473,1.08138324,3841.1,3839.3,1.5307]
[1733348971474,0.23694906,3841.1,3839.3,1.5307]
[1733348971804,1.46050173,3841.3,3839.3,1.5307]
[1733348971805,1.08138324,3841.3,3839.3,1.5307]
[1733348971987,1.9774917,3841.2,3839.3,1.5307]
[1733348972304,2.66250691,3841.3,3839.4,0.15307]
[1733348972527,0.89623514,3841.2,3839.4,0.15307]
[1733348972689,0.89623514,3841.2,3839.2,1.5307]
[1733348972891,1.77583596,3841.4,3839.2,1.5307]
[1733348972892,1.34417461,3841.3,3839.2,1.5307]
[1733348973112,0.23694906,3841.3,3839.2,1.5307]
[1733348973431,0.89604645,3841.2,3839.2,1.5307]
[1733348973928,1.5388869,3841.4,3839.2,1.5307]
[1733348974222,0.89590974,3841.3,3839.3,1.72087]
[1733348974708,0.45750366,3841.4,3839.3,1.72087]
[1733348975234,0.45750366,3841.4,3839.5,4.5831]
[1733348975539,0.45750366,3841.4,3839.5,1.5831]
[1733348975685,0.45750366,3841.4,3839.6,0.02604164]
[1733348975888,0.45750366,3841.4,3839.5,1.7831]
[1733348975889,0.45750366,3841.4,3839.9,1.5831]
[1733348976627,0.45750366,3841.4,3840.1,1.5831]
[1733348977386,0.45750366,3841.4,3840.4,1.5583]
[1733348978853,0.45750366,3841.4,3840.5,1.7111]
[1733348979127,0.45750366,3841.4,3840.8,1.5111]
[1733348979288,0.45750366,3841.4,3841.0,1.5111]
[1733348979605,0.45750366,3841.4,3841.0,4.5111]
[1733348979946,1.018716,3841.7,3841.4,4.5111]
[1733348980131,1.018716,3841.7,3841.4,1.5111]
[1733348980493,1.018716,3841.7,3841.3,0.2]
[1733348980494,1.018716,3841.7,3841.5,3.0]
[1733348980791,0.27132825,3844.3,3841.6,23.962327]
[1733348981127,0.27132825,3844.3,3841.8,1.5221]
[1733348982217,0.27132825,3844.3,3842.0,1.5755]
[1733348982442,1.3178052,3844.9,3842.0,1.5755]
[1733348982649,1.12751059,3844.8,3842.0,1.5755]
[1733348982949,1.12751059,3844.8,3841.6,0.32]
[1733348982950,0.23642196,3845.1,3842.9,1.6376]
[1733348983158,2.1692122,3845.7,3842.9,1.6376]
[1733348983159,0.23651517,3845.4,3842.9,1.8376]
[1733348983449,4.7690422,3846.4,3842.1,3.48357479]
[1733348983450,0.23651517,3846.1,3843.4,1.5315]
[1733348983607,0.40885206,3846.2,3843.4,1.5315]
[1733348983832,0.40885206,3846.2,3843.6,1.5315]
[1733348984031,0.23651517,3846.5,3843.6,1.5315]
[1733348984279,2.60058,3845.3,3843.2,1.5315]
[1733348984430,2.83716517,3845.2,3842.1,1.5315]
[1733348984636,2.88019229,3845.8,3842.1,1.5315]
[1733348984637,0.23651517,3845.1,3842.1,1.89465]
[1733348984835,0.23651517,3845.7,3842.1,1.89465]
[1733348985071,2.60046,3845.5,3842.1,1.89465]
[1733348985280,0.55,3845.3,3842.4,1.6033]
[1733348985631,2.60057,3845.3,3842.4,1.6033]
[1733348985836,3.1507,3845.2,3842.4,1.6033]
[1733348986057,0.55,3845.0,3842.4,1.6033]
[1733348986377,0.55,3844.8,3842.4,1.6033]
[1733348986669,0.55,3844.8,3839.3,2.16751003]
[1733348986670,0.55,3844.6,3841.5,0.2]
[1733348986844,0.55,3844.6,3841.6,1.664]
[1733348987044,0.78521882,3844.6,3841.6,1.664]
[1733348987245,3.0,3844.7,3841.6,1.664]
[1733348987525,2.6014,3844.1,3841.6,1.664]
[1733348987780,0.78521882,3844.0,3841.6,1.664]
[1733348988471,3.38667882,3844.0,3841.6,1.664]
[1733348988644,0.23521882,3843.9,3841.6,1.664]
[1733348988846,0.55,3843.8,3841.6,1.664]
[1733348989376,0.23521882,3844.3,3841.6,1.664]
[1733348989551,2.60163,3843.8,3841.6,1.664]
[1733348989732,0.23521882,3843.7,3841.6,1.664]
[1733348989977,2.60201,3843.2,3841.1,1.5131]
[1733348990141,3.3,3843.0,3840.7,1.5131]
[1733348990347,2.60254,3842.4,3840.7,1.5131]
[1733348990572,2.6022,3842.9,3840.7,1.5131]
[1733348990573,3.0,3842.6,3840.7,1.5131]
[1733348990867,0.23511346,3842.5,3840.0,1.5316]
[1733348991370,0.55,3842.4,3840.0,1.5316]
[1733348993468,0.55,3842.4,3840.0,1.68476]
[1733348994234,0.55,3842.7,3840.0,1.68476]
[1733348994433,0.78511346,3842.7,3840.0,1.68476]
[1733348994634,0.55,3842.7,3840.0,1.68476]
[1733348994841,0.55,3843.0,3840.0,1.68476]
[1733348995067,0.23511346,3843.0,3840.0,1.68476]
[1733348995270,0.23511346,3843.0,3840.2,1.5]
[1733348995468,0.40605874,3843.2,3840.4,1.5]
[1733348995633,0.23511346,3843.3,3840.4,1.5]
[1733348996071,2.41631473,3843.4,3840.4,1.5]
[1733348996072,2.83699346,3843.4,3840.4,1.5]
[1733348996237,0.23511346,3843.3,3840.4,1.5]
[1733348996439,0.23511346,3843.3,3840.1,0.2]
[1733348996440,0.23511346,3843.3,3840.6,1.6447]
[1733348996865,0.23511346,3843.4,3840.6,1.6447]
[1733348997056,0.55,3843.4,3840.6,1.6447]
[1733348997240,0.55,3843.2,3840.6,1.6447]
[1733348997578,0.78585622,3843.2,3840.6,1.6447]
[1733348997743,0.55,3843.3,3840.8,1.6549]
[1733348998086,0.78585622,3843.3,3840.8,1.6549]
[1733348998244,3.0,3843.4,3840.8,1.6549]
[1733348998245,0.23585622,3843.2,3840.8,1.6549]
[1733348998446,0.23585622,3843.4,3840.8,1.6549]
[1733348998803,0.23585622,3843.5,3840.8,1.6549]
[1733348998980,0.23585622,3843.4,3841.0,1.5253]
[1733348999187,0.23585622,3843.3,3841.0,1.5253]
[1733348999475,1.08138324,3843.7,3841.0,1.5253]
[1733348999476,0.23585622,3843.6,3841.0,1.5253]
[1733348999652,1.12757672,3843.5,3841.0,1.5253]
[1733348999842,0.23585622,3843.4,3841.0,1.5253]
[1733349000049,2.79600965,3843.7,3841.2,1.5253]
[1733349000050,0.78585622,3843.3,3841.2,1.5253]
[1733349000250,0.55,3843.1,3841.2,1.5253]
[1733349000673,0.23585622,3843.6,3841.5,4.6192]
[1733349000845,0.23585622,3843.5,3841.6,1.6192]
[1733349001044,0.23585622,3843.4,3841.6,1.6192]
[1733349001243,1.08138324,3843.8,3841.6,1.6192]
[1733349001244,0.23585622,3843.3,3841.6,1.6192]
[1733349001443,0.23585622,3843.7,3841.8,1.584]
[1733349001700,1.8945333,3844.0,3841.8,1.584]
[1733349001701,0.23585622,3843.6,3841.8,1.584]
[1733349002003,1.35285347,3844.0,3841.8,1.584]
[1733349002004,0.23585622,3843.5,3841.8,1.584]
[1733349002153,0.23585622,3843.4,3841.8,1.584]
[1733349002353,1.08138324,3843.9,3841.8,1.584]
[1733349002550,0.23634692,3843.3,3841.8,1.584]
[1733349002757,0.55,3843.2,3841.8,1.584]
[1733349003260,0.55,3843.5,3841.8,1.584]
[1733349003451,0.55,3843.3,3841.8,1.584]
[1733349003650,0.78634692,3843.3,3841.8,1.7424]
[1733349003960,0.55,3843.3,3841.8,1.7424]
[1733349004690,1.08138324,3844.0,3841.8,1.7424]
[1733349004691,0.78634692,3843.6,3841.8,1.7424]